lending/lending_fUSD_20241124
["ID","MTS","AMOUNT","RATE_DAILY","PERIOD"]
[343193376,1732431902137,-151.0,0.00042395,14]
[343193377,1732431902164,-151.0,0.00042395,14]
[343193378,1732431902195,-151.0,0.00042395,14]
[343193379,1732431902225,-151.0,0.00042395,14]
[343193380,1732431902255,-507.69883426,0.00042395,2]
[343193381,1732431902287,-151.0,0.00042395,14]
[343193382,1732431902316,-151.0,0.00042395,14]
[343193383,1732431902346,-254.74407,0.00042395,14]
[343193384,1732431902376,-151.0,0.00042395,14]
[343193385,1732431902410,-151.0,0.00042395,14]
[343193386,1732431902440,-151.0,0.00042395,14]
[343193387,1732431902469,-151.0,0.00042395,14]
[343193388,1732431902498,-151.0,0.00042395,14]
[343193389,1732431902526,-151.0,0.00042395,14]
[343193390,1732431902554,-237.672964,0.00042395,14]
[343193391,1732431902583,-500.0,0.00042395,2]
[343193392,1732431902612,-418.57971458,0.00042395,2]
[343193393,1732431902643,-552.02412479,0.00042395,2]
[343193394,1732431902671,-500.0,0.00042395,2]
[343193395,1732431902698,-500.0,0.00042395,2]
[343193396,1732431902725,-500.0,0.00042395,2]
[343193397,1732431902752,-161.146629,0.00042395,14]
[343193398,1732431902780,-161.146629,0.00042395,14]
[343193399,1732431902808,-161.146629,0.00042395,14]
[343193400,1732431902837,-161.146629,0.00042395,14]
[343193401,1732431902863,-161.146629,0.00042395,14]
[343193402,1732431902891,-161.146629,0.00042395,14]
[343193403,1732431902919,-161.146629,0.00042395,14]
[343193404,1732431902946,-161.146624,0.00042395,14]
[343193405,1732431902972,-500.0,0.00042395,2]
[343193406,1732431902999,-500.0,0.00042395,2]
[343193407,1732431903041,-500.0,0.00042395,2]
[343193408,1732431903071,-500.0,0.00042395,2]
[343193409,1732431903103,-500.0,0.00042395,2]
[343193410,1732431903134,-647.8118251,0.00042395,2]
[343193411,1732431903165,-500.0,0.00042395,2]
[343193412,1732431903195,-500.0,0.00042395,2]
[343193413,1732431903223,-500.0,0.00042395,2]
[343193414,1732431903251,-1586.23,0.00042395,2]
[343193415,1732431903280,-500.0,0.00042395,2]
[343193416,1732431903309,-151.0,0.00042395,7]
[343193417,1732431903337,-151.0,0.00042395,7]
[343193418,1732431903366,-1940.03,0.00042395,2]
[343193419,1732431903400,-151.0,0.00042395,7]
[343193420,1732431903430,-505.23730962,0.00042395,2]
[343193421,1732431903459,-178.53787587,0.00042395,2]
[343193422,1732431903488,-586.64621686,0.00042395,2]
[343193423,1732431903517,-500.0,0.00042395,2]
[343193424,1732431903547,-500.0,0.00042395,2]
[343193425,1732431903580,-500.0,0.00042395,2]
[343193426,1732431903609,-504.57306879,0.00042395,2]
[343193427,1732431903640,-500.0,0.00042395,2]
[343193428,1732431903669,-500.0,0.00042395,2]
[343193429,1732431903698,-279.49986752,0.00042395,2]
[343193430,1732431903727,-500.05021336,0.00042395,2]
[343193431,1732431903756,-500.0,0.00042395,2]
[343193432,1732431903787,-500.0,0.00042395,2]
[343193433,1732431903816,-500.0,0.00042395,2]
[343193434,1732431903847,-500.0,0.00042395,2]
[343193435,1732431903880,-671.0,0.00042395,2]
[343193436,1732431903913,-500.0,0.00042395,120]
[343193437,1732431903940,-500.0,0.00042395,2]
[343193438,1732431903969,-500.0,0.00042395,2]
[343193439,1732431903999,-500.0,0.00042395,2]
[343193440,1732431904032,-500.0,0.00042395,2]
[343193441,1732431904063,-285.548678,0.00042395,14]
[343193442,1732431904094,-285.548678,0.00042395,14]
[343193443,1732431904124,-251.836039,0.00042395,14]
[343193444,1732431904153,-251.836039,0.00042395,14]
[343193445,1732431904185,-285.548678,0.00042395,14]
[343193446,1732431904214,-285.548673,0.00042395,14]
[343193447,1732431904242,-251.836039,0.00042395,14]
[343193448,1732431904269,-251.836035,0.00042395,14]
[343193449,1732431904527,-151.0,0.00042395,14]
[343193450,1732431904558,-512.571432,0.00042395,14]
[343193451,1732431904598,-512.571432,0.00042395,14]
[343193452,1732431904631,-512.571432,0.00042395,14]
[343193453,1732431904664,-512.571432,0.00042395,14]
[343193454,1732431904694,-619.039414,0.00042395,14]
[343193455,1732431904723,-619.039414,0.00042395,14]
[343193456,1732431904752,-1330.478176,0.00042395,14]
[343193457,1732431904779,-1330.478176,0.00042395,14]
[343193458,1732431904807,-619.039414,0.00042395,14]
[343193459,1732431904836,-619.039414,0.00042395,14]
[343193460,1732431904872,-1330.478176,0.00042395,14]
[343193461,1732431904903,-1330.478176,0.00042395,14]
[343193462,1732431904932,-151.0,0.00042395,14]
[343193463,1732431904961,-151.0,0.00042395,14]
[343193464,1732431904991,-265.491763,0.00042395,14]
[343193465,1732431905023,-265.491763,0.00042395,14]
[343193466,1732431905052,-151.0,0.00042395,14]
[343193467,1732431905083,-265.491763,0.00042395,14]
[343193468,1732431905112,-265.491763,0.00042395,14]
[343193469,1732431905143,-240.3469434,0.00042396,30]
[343193470,1732431905173,-151.0,0.00042396,14]
[343193471,1732431905202,-33335.2012422,0.00042413,2]
[343193472,1732431905231,-500.0,0.00042414,2]
[343193473,1732431905260,-429.05544544,0.00042414,2]
[343193474,1732431905289,-500.0,0.00042414,2]
[343193475,1732431905317,-500.0,0.00042414,2]
[343193476,1732431905346,-439.64083377,0.00042414,2]
[343193477,1732431905375,-500.0,0.00042414,2]
[343193478,1732431905403,-500.0,0.00042414,2]
[343193479,1732431905432,-500.0,0.00042414,2]
[343193480,1732431905468,-500.0,0.00042414,2]
[343193481,1732431905497,-500.0,0.00042414,2]
[343193482,1732431905526,-500.0,0.00042414,2]
[343193483,1732431905555,-500.0,0.00042414,2]
[343193484,1732431905589,-543.12451775,0.00042414,2]
[343193485,1732431905620,-567.04,0.00042414,2]
[343193486,1732431905655,-500.0,0.00042414,2]
[343193487,1732431905684,-509.94570943,0.00042414,2]
[343193488,1732431905713,-500.0,0.00042414,2]
[343193489,1732431905742,-500.0,0.00042414,2]
[343193490,1732431905771,-1000.0,0.00042414,2]
[343193491,1732431905801,-500.0,0.00042414,2]
[343193492,1732431905831,-500.0,0.00042414,2]
[343193493,1732431905861,-500.0,0.00042414,2]
[343193494,1732431905890,-500.0,0.00042414,2]
[343193495,1732431905919,-500.0,0.00042414,2]
[343193496,1732431905949,-500.0,0.00042414,2]
[343193497,1732431905978,-500.0,0.00042414,2]
[343193498,1732431906008,-500.0,0.00042414,2]
[343193499,1732431906039,-234.61123141,0.00042414,2]
[343193500,1732431906075,-500.0,0.00042414,2]
[343193501,1732431906104,-544.40961323,0.00042414,2]
[343193502,1732431906139,-500.0,0.00042414,2]
[343193503,1732431906168,-500.0,0.00042414,2]
[343193504,1732431906198,-559.05295736,0.00042414,2]
[343193505,1732431906227,-500.0,0.00042414,2]
[343193506,1732431906257,-500.0,0.00042414,2]
[343193507,1732431906286,-500.0,0.00042414,2]
[343193508,1732431906316,-500.0,0.00042414,2]
[343193509,1732431906346,-158.25128126,0.00042414,2]
[343193510,1732431906373,-500.0,0.00042414,2]
[343193511,1732431906403,-309.11903486,0.00042414,2]
[343193512,1732431906431,-500.0,0.00042414,2]
[343193513,1732431906460,-2262.2,0.00042414,2]
[343193514,1732431906488,-500.0,0.00042414,2]
[343193515,1732431906516,-500.0,0.00042414,2]
[343193516,1732431906544,-500.0,0.00042414,2]
[343193517,1732431906574,-558.94262729,0.00042414,2]
[343193518,1732431906604,-500.0,0.00042414,2]
[343193519,1732431906634,-500.0,0.00042414,2]
[343193520,1732431906665,-500.0,0.00042414,2]
[343193521,1732431906694,-500.0,0.00042414,2]
[343193522,1732431906723,-314.93582649,0.00042414,2]
[343193523,1732431906752,-500.0,0.00042414,2]
[343193524,1732431906798,-500.0,0.00042414,2]
[343193525,1732431906831,-611.87,0.00042414,2]
[343193526,1732431906863,-652.13,0.00042414,2]
[343193527,1732431906897,-500.0,0.00042414,2]
[343193528,1732431906928,-181.94116515,0.00042414,2]
[343193529,1732431906960,-794.85,0.00042414,2]
[343193530,1732431906990,-500.0,0.00042414,2]
[343193531,1732431907024,-512.571432,0.00042414,14]
[343193532,1732431907060,-512.571432,0.00042414,14]
[343193533,1732431907092,-500.0,0.00042414,2]
[343193534,1732431907123,-619.039414,0.00042414,14]
[343193535,1732431907153,-1330.478176,0.00042414,14]
[343193536,1732431907184,-619.039414,0.00042414,14]
[343193537,1732431907215,-997.6221477,0.00042414,14]
[343193538,1732431908635,-151.0,0.00042394,14]
[343193539,1732431908668,-151.0,0.00042394,14]
[343193540,1732431908697,-151.0,0.00042394,14]
[343193541,1732431908725,-151.0,0.00042394,14]
[343193542,1732431908754,-151.0,0.00042394,14]
[343193543,1732431908782,-151.0,0.00042394,14]
[343193544,1732431908809,-151.0,0.00042394,14]
[343193545,1732431908839,-234.092008,0.00042394,14]
[343193546,1732431908867,-151.0,0.00042395,14]
[343193547,1732431908898,-12774.4460368,0.00042413,2]
[343193548,1732431908928,-332.8560283,0.00042414,14]
[343193549,1732431908956,-500.0,0.00042414,2]
[343193550,1732431908984,-731.99,0.00042414,2]
[343193551,1732431909012,-1301.71,0.00042414,2]
[343193552,1732431909046,-151.0,0.00042414,14]
[343193553,1732431909073,-265.491763,0.00042414,14]
[343193554,1732431909102,-151.0,0.00042414,14]
[343193555,1732431909132,-265.491763,0.00042414,14]
[343193556,1732431909166,-2007.76,0.00042414,2]
[343193557,1732431909193,-206.02,0.00042414,2]
[343193558,1732431909221,-151.0,0.00042414,14]
[343193559,1732431909250,-151.0,0.00042442,7]
[343193560,1732431909280,-500.0,0.00042442,2]
[343193561,1732431909311,-500.0,0.00042442,2]
[343193562,1732431909341,-500.0,0.00042442,2]
[343193563,1732431909372,-500.0,0.00042442,2]
[343193564,1732431909404,-258.04945891,0.00042442,2]
[343193565,1732431909432,-500.0,0.00042442,2]
[343193566,1732431909461,-500.0,0.00042442,2]
[343193567,1732431909491,-500.0,0.00042442,2]
[343193568,1732431909519,-7577.69,0.00042442,2]
[343193569,1732431909548,-500.0,0.00042442,2]
[343193570,1732431909578,-500.0,0.00042442,2]
[343193571,1732431909607,-500.0,0.00042442,2]
[343193572,1732431909636,-500.0,0.00042442,2]
[343193573,1732431909667,-500.0,0.00042442,2]
[343193574,1732431909695,-500.0,0.00042442,2]
[343193575,1732431909725,-3452.54,0.00042442,2]
[343193576,1732431909755,-500.0,0.00042442,2]
[343193577,1732431909784,-168.0,0.00042442,2]
[343193578,1732431909814,-500.0,0.00042442,2]
[343193579,1732431909842,-500.0,0.00042442,2]
[343193580,1732431909870,-500.0,0.00042442,2]
[343193581,1732431909897,-500.0,0.00042442,2]
[343193582,1732431909924,-500.0,0.00042442,2]
[343193583,1732431909953,-512.571432,0.00042442,14]
[343193584,1732431909980,-551.67,0.00042442,2]
[343193585,1732431910012,-512.571426,0.00042442,14]
[343193586,1732431910040,-619.039414,0.00042442,14]
[343193587,1732431910071,-1330.478176,0.00042442,14]
[343193588,1732431910101,-627.87751501,0.00042442,2]
[343193589,1732431910130,-619.039408,0.00042442,14]
[343193590,1732431910158,-1330.478175,0.00042442,14]
[343193591,1732431910187,-565.28619346,0.00042442,2]
[343193592,1732431910214,-500.0,0.00042442,2]
[343193593,1732431910244,-151.0,0.00042442,14]
[343193594,1732431910271,-500.0,0.00042442,2]
[343193595,1732431910300,-668.19,0.00042442,2]
[343193596,1732431910328,-265.491763,0.00042442,14]
[343193597,1732431910356,-265.491764,0.00042442,14]
[343193598,1732431910383,-554.21,0.00042442,2]
[343193599,1732431910415,-500.0,0.00042443,2]
[343193600,1732431910441,-500.0,0.00042443,2]
[343193601,1732431910468,-500.0,0.00042443,2]
[343193602,1732431910496,-894.69,0.00042443,2]
[343193603,1732431910522,-500.0,0.00042443,2]
[343193604,1732431910551,-500.0,0.00042443,2]
[343193605,1732431910580,-500.0,0.00042443,2]
[343193606,1732431910609,-668.17,0.00042443,2]
[343193607,1732431910637,-500.0,0.00042443,2]
[343193608,1732431910667,-500.0,0.00042443,2]
[343193609,1732431910697,-500.0,0.00042443,2]
[343193610,1732431910726,-500.0,0.00042443,2]
[343193611,1732431910756,-554.20643155,0.00042443,2]
[343193612,1732431910785,-500.0,0.00042443,2]
[343193613,1732431910813,-500.0,0.00042443,2]
[343193614,1732431910840,-500.0,0.00042443,2]
[343193615,1732431910871,-500.0,0.00042443,2]
[343193616,1732431910901,-500.0,0.00042443,2]
[343193617,1732431910930,-500.0,0.00042443,2]
[343193618,1732431910958,-500.0,0.00042443,2]
[343193619,1732431910987,-500.0,0.00042443,2]
[343193620,1732431911019,-500.0,0.00042443,2]
[343193621,1732431911049,-500.0,0.00042443,2]
[343193622,1732431911078,-500.0,0.00042443,2]
[343193623,1732431911113,-500.0,0.00042443,2]
[343193624,1732431911147,-500.0,0.00042443,2]
[343193625,1732431911177,-500.0,0.00042443,2]
[343193626,1732431911207,-500.0,0.00042443,2]
[343193627,1732431911238,-500.0,0.00042443,2]
[343193628,1732431911267,-500.0,0.00042443,2]
[343193629,1732431911297,-500.0,0.00042443,2]
[343193630,1732431911327,-500.0,0.00042443,2]
[343193631,1732431911358,-500.0,0.00042443,2]
[343193632,1732431911390,-500.0,0.00042443,2]
[343193633,1732431911423,-338.21944288,0.00042443,2]
[343193634,1732431911456,-500.0,0.00042443,2]
[343193635,1732431911486,-500.0,0.00042443,2]
[343193636,1732431911518,-500.0,0.00042443,2]
[343193637,1732431911547,-500.0,0.00042443,2]
[343193638,1732431911575,-500.0,0.00042443,2]
[343193639,1732431911604,-500.0,0.00042443,2]
[343193640,1732431911633,-500.0,0.00042443,2]
[343193641,1732431911664,-500.0,0.00042443,2]
[343193642,1732431911694,-500.0,0.00042443,2]
[343193643,1732431911722,-192.13130204,0.00042443,2]
[343193644,1732431911751,-500.0,0.00042443,2]
[343193645,1732431911780,-505.05074576,0.00042443,2]
[343193646,1732431911808,-507.73123136,0.00042443,2]
[343193647,1732431911835,-500.0,0.00042443,2]
[343193648,1732431911863,-500.0,0.00042443,2]
[343193649,1732431911891,-500.0,0.00042443,2]
[343193650,1732431911920,-700.0,0.00042443,2]
[343193651,1732431911948,-511.474429,0.00042443,2]
[343193652,1732431911976,-500.0,0.00042443,2]
[343193653,1732431912005,-500.0,0.00042443,2]
[343193654,1732431912035,-511.9144711,0.00042443,2]
[343193655,1732431912067,-500.0,0.00042443,2]
[343193656,1732431912096,-500.0,0.00042443,2]
[343193657,1732431912125,-514.09941053,0.00042443,2]
[343193658,1732431912152,-500.0,0.00042443,2]
[343193659,1732431912182,-520.19321871,0.00042443,2]
[343193660,1732431912208,-500.0,0.00042443,2]
[343193661,1732431912237,-500.0,0.00042443,2]
[343193662,1732431912442,-500.0,0.00042443,2]
[343193663,1732431912471,-500.0,0.00042443,2]
[343193664,1732431912499,-500.0,0.00042443,2]
[343193665,1732431912529,-500.0,0.00042443,2]
[343193666,1732431912558,-500.0,0.00042443,2]
[343193667,1732431912585,-500.0,0.00042443,2]
[343193668,1732431912613,-500.0,0.00042443,2]
[343193669,1732431912641,-500.0,0.00042443,2]
[343193670,1732431912676,-500.0,0.00042443,2]
[343193671,1732431912703,-500.0,0.00042443,2]
[343193672,1732431912733,-500.0,0.00042443,2]
[343193673,1732431912761,-500.0,0.00042443,2]
[343193674,1732431912789,-500.0,0.00042443,2]
[343193675,1732431912817,-500.0,0.00042443,2]
[343193676,1732431912847,-500.0,0.00042443,2]
[343193677,1732431912874,-500.0,0.00042443,2]
[343193678,1732431912901,-517.78563934,0.00042443,2]
[343193679,1732431912927,-505.32556804,0.00042443,2]
[343193680,1732431912956,-500.0,0.00042443,2]
[343193681,1732431912983,-500.0,0.00042443,2]
[343193682,1732431913011,-500.0,0.00042443,2]
[343193683,1732431913043,-500.0,0.00042443,2]
[343193684,1732431913074,-500.0,0.00042443,2]
[343193685,1732431913103,-500.0,0.00042443,2]
[343193686,1732431913131,-500.0,0.00042443,2]
[343193687,1732431913160,-500.0,0.00042443,2]
[343193688,1732431913189,-578.05540764,0.00042443,2]
[343193689,1732431913216,-500.0,0.00042443,2]
[343193690,1732431913244,-500.0,0.00042443,2]
[343193691,1732431913272,-500.0,0.00042443,2]
[343193692,1732431913302,-500.0,0.00042443,2]
[343193693,1732431913330,-500.0,0.00042443,2]
[343193694,1732431913357,-500.0,0.00042443,2]
[343193695,1732431913384,-500.0,0.00042443,2]
[343193696,1732431913415,-500.0,0.00042443,2]
[343193697,1732431913443,-500.0,0.00042443,2]
[343193698,1732431913471,-500.0,0.00042443,2]
[343193699,1732431913500,-500.0,0.00042443,2]
[343193700,1732431913530,-237.16,0.00042443,2]
[343193701,1732431913559,-500.0,0.00042443,2]
[343193702,1732431913587,-503.50379563,0.00042443,2]
[343193703,1732431913619,-500.0,0.00042443,2]
[343193704,1732431913651,-500.0,0.00042443,2]
[343193705,1732431913679,-646.83591566,0.00042443,2]
[343193706,1732431913706,-387.93655286,0.00042443,2]
[343193707,1732431913734,-508.06397878,0.00042443,2]
[343193708,1732431913762,-500.0,0.00042443,2]
[343193709,1732431913789,-500.0,0.00042443,2]
[343193710,1732431913817,-500.0,0.00042443,2]
[343193711,1732431913845,-500.0,0.00042443,2]
[343193712,1732431913875,-500.0,0.00042443,2]
[343193713,1732431913906,-500.0,0.00042443,2]
[343193714,1732431913934,-500.0,0.00042443,2]
[343193715,1732431913966,-500.0,0.00042443,2]
[343193716,1732431913997,-500.0,0.00042443,2]
[343193717,1732431914030,-500.0,0.00042443,2]
[343193718,1732431914059,-500.0,0.00042443,2]
[343193719,1732431914089,-500.0,0.00042443,2]
[343193720,1732431914119,-500.0,0.00042443,2]
[343193721,1732431914149,-500.72,0.00042443,2]
[343193722,1732431914178,-500.0,0.00042443,2]
[343193723,1732431914206,-500.0,0.00042443,2]
[343193724,1732431914235,-500.0,0.00042443,2]
[343193725,1732431914262,-500.0,0.00042443,2]
[343193726,1732431914293,-500.0,0.00042443,2]
[343193727,1732431914323,-500.0,0.00042443,2]
[343193728,1732431914355,-500.0,0.00042443,2]
[343193729,1732431914388,-500.0,0.00042443,2]
[343193730,1732431914421,-500.0,0.00042443,2]
[343193731,1732431914449,-500.0,0.00042443,2]
[343193732,1732431914477,-500.0,0.00042443,2]
[343193733,1732431914506,-508.12302009,0.00042443,2]
[343193734,1732431914535,-500.0,0.00042443,2]
[343193735,1732431914564,-500.0,0.00042443,2]
[343193736,1732431914593,-500.0,0.00042443,2]
[343193737,1732431914620,-500.0,0.00042443,2]
[343193738,1732431914650,-500.0,0.00042443,2]
[343193739,1732431914678,-500.0,0.00042443,2]
[343193740,1732431914707,-500.0,0.00042443,2]
[343193741,1732431914734,-500.0,0.00042443,2]
[343193742,1732431914764,-500.0,0.00042443,2]
[343193743,1732431914793,-500.0,0.00042443,2]
[343193744,1732431914822,-505.2116878,0.00042443,2]
[343193745,1732431914853,-623.9914728,0.00042443,2]
[343193746,1732431914883,-500.0,0.00042443,2]
[343193747,1732431914913,-500.0,0.00042443,2]
[343193748,1732431914942,-500.0,0.00042443,2]
[343193749,1732431914970,-500.0,0.00042443,2]
[343193750,1732431915001,-500.0,0.00042443,2]
[343193751,1732431915039,-505.04150945,0.00042443,2]
[343193752,1732431915068,-500.0,0.00042443,2]
[343193753,1732431915097,-500.0,0.00042443,2]
[343193754,1732431915125,-510.97553687,0.00042443,2]
[343193755,1732431915154,-500.0,0.00042443,2]
[343193756,1732431915182,-500.0,0.00042443,2]
[343193757,1732431915213,-513.53145632,0.00042443,2]
[343193758,1732431915241,-509.28839263,0.00042443,2]
[343193759,1732431915269,-500.0,0.00042443,2]
[343193760,1732431915297,-500.0,0.00042443,2]
[343193761,1732431915325,-500.0,0.00042443,2]
[343193762,1732431915353,-506.96052187,0.00042443,2]
[343193763,1732431915383,-500.0,0.00042443,2]
[343193764,1732431915413,-500.0,0.00042443,2]
[343193765,1732431915441,-500.0,0.00042443,2]
[343193766,1732431915475,-500.0,0.00042443,2]
[343193767,1732431915505,-500.0,0.00042443,2]
[343193768,1732431915535,-500.0,0.00042443,2]
[343193769,1732431915564,-500.0,0.00042443,2]
[343193770,1732431915593,-509.01449029,0.00042443,2]
[343193771,1732431915623,-355.5020874,0.00042443,2]
[343193772,1732431915652,-509.12176437,0.00042443,2]
[343193773,1732431915681,-505.49582182,0.00042443,2]
[343193774,1732431915711,-511.64708311,0.00042443,2]
[343193775,1732431915740,-586.62905178,0.00042443,2]
[343193776,1732431915769,-500.0,0.00042443,2]
[343193777,1732431915797,-504.58956674,0.00042443,2]
[343193778,1732431915824,-500.0,0.00042443,2]
[343193779,1732431915852,-510.35058733,0.00042443,2]
[343193780,1732431915880,-504.96664617,0.00042443,2]
[343193781,1732431915910,-500.0,0.00042443,2]
[343193782,1732431915937,-500.0,0.00042443,2]
[343193783,1732431915965,-500.0,0.00042443,2]
[343193784,1732431915993,-511.46895313,0.00042443,2]
[343193785,1732431916025,-500.0,0.00042443,2]
[343193786,1732431916055,-500.0,0.00042443,2]
[343193787,1732431916084,-500.0,0.00042443,2]
[343193788,1732431916113,-500.0,0.00042443,2]
[343193789,1732431916142,-434.11332405,0.00042443,2]
[343193790,1732431916172,-500.0,0.00042443,2]
[343193791,1732431916202,-500.0,0.00042443,7]
[343193792,1732431916231,-505.71370837,0.00042443,2]
[343193793,1732431916262,-507.55341604,0.00042443,2]
[343193794,1732431916291,-504.41584456,0.00042443,2]
[343193795,1732431916482,-545.77266676,0.00042443,2]
[343193796,1732431916511,-500.0,0.00042443,2]
[343193797,1732431916538,-703.55,0.00042443,2]
[343193798,1732431916568,-523.31702233,0.00042443,2]
[343193799,1732431916596,-506.62156067,0.00042443,2]
[343193800,1732431916626,-500.0,0.00042443,2]
[343193801,1732431916658,-500.0,0.00042443,2]
[343193802,1732431916686,-510.0990527,0.00042443,2]
[343193803,1732431916715,-503.65735952,0.00042443,2]
[343193804,1732431916744,-505.96710021,0.00042443,2]
[343193805,1732431916771,-500.0,0.00042443,2]
[343193806,1732431916799,-500.0,0.00042443,2]
[343193807,1732431916828,-500.0,0.00042443,2]
[343193808,1732431916856,-514.78122572,0.00042443,2]
[343193809,1732431916884,-500.0,0.00042443,2]
[343193810,1732431916915,-505.42661355,0.00042443,2]
[343193811,1732431916943,-500.0,0.00042443,2]
[343193812,1732431916971,-514.13177506,0.00042443,2]
[343193813,1732431917002,-500.0,0.00042443,2]
[343193814,1732431917034,-500.0,0.00042443,2]
[343193815,1732431917063,-513.48023532,0.00042443,2]
[343193816,1732431917092,-504.50753343,0.00042443,2]
[343193817,1732431917122,-500.0,0.00042443,2]
[343193818,1732431917150,-500.0,0.00042443,2]
[343193819,1732431917178,-500.0,0.00042443,2]
[343193820,1732431917209,-500.0,0.00042443,2]
[343193821,1732431917237,-500.0,0.00042443,2]
[343193822,1732431917264,-195.7707446,0.00042443,2]
[343193823,1732431917293,-500.0,0.00042443,2]
[343193824,1732431917322,-500.0,0.00042443,2]
[343193825,1732431917353,-500.0,0.00042443,2]
[343193826,1732431917385,-500.0,0.00042443,2]
[343193827,1732431917420,-500.0,0.00042443,2]
[343193828,1732431917449,-620.9,0.00042443,2]
[343193829,1732431917478,-500.0,0.00042443,2]
[343193830,1732431917507,-500.0,0.00042443,2]
[343193831,1732431917536,-500.0,0.00042443,2]
[343193832,1732431917565,-538.23,0.00042443,2]
[343193833,1732431917594,-500.0,0.00042443,2]
[343193834,1732431917622,-958.73,0.00042443,2]
[343193835,1732431917652,-509.80581185,0.00042443,2]
[343193836,1732431917680,-462.09637301,0.00042443,2]
[343193837,1732431917710,-537.69,0.00042443,2]
[343193838,1732431917738,-500.0,0.00042443,2]
[343193839,1732431917766,-500.0,0.00042443,2]
[343193840,1732431917796,-473.26637401,0.00042443,2]
[343193841,1732431917824,-500.0,0.00042443,2]
[343193842,1732431917851,-500.0,0.00042443,2]
[343193843,1732431917881,-512.45126001,0.00042443,2]
[343193844,1732431917912,-500.0,0.00042443,2]
[343193845,1732431917940,-500.0,0.00042443,2]
[343193846,1732431917969,-500.0,0.00042443,2]
[343193847,1732431918000,-500.0,0.00042443,2]
[343193848,1732431918031,-500.0,0.00042443,2]
[343193849,1732431918062,-500.0,0.00042443,2]
[343193850,1732431918092,-500.0,0.00042443,2]
[343193851,1732431918121,-500.0,0.00042443,2]
[343193852,1732431918154,-500.0,0.00042443,2]
[343193853,1732431918183,-500.0,0.00042443,2]
[343193854,1732431918212,-500.0,0.00042443,2]
[343193855,1732431918242,-357.37273925,0.00042443,2]
[343193856,1732431918273,-509.93712413,0.00042443,2]
[343193857,1732431918305,-500.0,0.00042443,2]
[343193858,1732431918335,-500.0,0.00042443,2]
[343193859,1732431918365,-523.20904056,0.00042443,2]
[343193860,1732431918399,-584.02517453,0.00042443,2]
[343193861,1732431918428,-500.0,0.00042443,2]
[343193862,1732431918458,-500.0,0.00042443,2]
[343193863,1732431918490,-300.0,0.00042443,2]
[343193864,1732431918520,-513.30520197,0.00042443,2]
[343193865,1732431918554,-500.0,0.00042443,2]
[343193866,1732431918586,-500.0,0.00042443,2]
[343193867,1732431918617,-500.0,0.00042443,2]
[343193868,1732431918650,-500.0,0.00042443,2]
[343193869,1732431918680,-500.0,0.00042443,2]
[343193870,1732431918709,-519.21837925,0.00042443,2]
[343193871,1732431918739,-511.22175052,0.00042443,2]
[343193872,1732431918768,-500.0,0.00042443,2]
[343193873,1732431918797,-511.12726821,0.00042443,2]
[343193874,1732431918824,-500.0,0.00042443,2]
[343193875,1732431918853,-500.0,0.00042443,2]